bitfinex/quotes_ETHUSD_20260120
["timestamp","ask_amount","ask_price","bid_price","bid_amount"]
[1768889972776,6.37653434,3136.5,3134.4,4.37392052]
[1768889973176,9.56480151,3136.5,3134.5,0.5]
[1768889973379,3.18826717,3136.5,3134.5,4.43083684]
[1768889973578,0.36095708,3136.4,3134.5,4.87392052]
[1768889973784,3.85146596,3136.5,3133.9,3.93283684]
[1768889973962,3.85146596,3136.5,3134.2,0.5]
[1768889974384,3.60950449,3136.6,3134.2,4.43083684]
[1768889974546,6.79770535,3136.6,3134.2,4.43083684]
[1768889974975,6.79770535,3136.6,3133.9,0.002]
[1768889974976,6.79770535,3136.6,3134.3,0.5]
[1768889975175,0.67977054,3136.5,3134.4,3.93083684]
[1768889975390,0.68077054,3136.5,3134.4,3.93083684]
[1768889975792,0.68077054,3136.5,3134.5,0.5]
[1768889976509,0.68077054,3136.5,3134.5,4.43083684]
[1768889976877,3.18836883,3136.4,3134.5,4.43083684]
[1768889977079,0.70574386,3136.3,3134.5,4.43083684]
[1768889977282,3.18929865,3136.5,3134.5,4.37164402]
[1768889977586,0.001,3136.5,3134.6,3.93083684]
[1768889978204,6.37755319,3136.5,3134.6,3.93083684]
[1768889978636,3.1892854,3136.5,3134.6,3.93083684]
[1768889978828,3.1892854,3136.5,3134.7,4.43083684]
[1768889978982,3.8261708,3136.4,3134.7,4.43083684]
[1768889979383,7.01459403,3136.4,3134.7,3.93083684]
[1768889979605,10.20301726,3136.4,3134.1,3.93283684]
[1768889979806,13.39144049,3136.4,3134.1,3.93283684]
[1768889980012,13.39144049,3136.4,3134.2,1e-08]
[1768889980013,3.97946596,3135.9,3134.2,1e-08]
[1768889980324,3.97946596,3135.9,3133.5,3.93083684]
[1768889980325,5.10874726,3135.0,3132.4,0.002]
[1768889980483,3.85146596,3134.4,3132.3,0.497]
[1768889980884,3.85146596,3134.4,3132.4,0.499]
[1768889980885,6.3810101,3134.3,3132.4,0.499]
[1768889981090,16.61348616,3134.3,3132.0,0.002]
[1768889981313,1.49051167,3134.2,3132.1,0.499]
[1768889981790,0.128,3134.1,3132.0,0.002]
[1768889982100,0.128,3134.1,3132.1,0.499]
[1768889982503,1.49051167,3134.2,3132.1,0.499]
[1768889982702,0.63774757,3134.1,3132.1,4.42983684]
[1768889982903,0.62974757,3134.1,3132.1,4.42983684]
[1768889983112,6.38162092,3134.0,3132.1,3.93083684]
[1768889983301,12.76324184,3134.0,3132.0,0.002]
[1768889983502,9.57243138,3134.0,3132.1,0.499]
[1768889983697,1.02021789,3133.9,3132.1,0.499]
[1768889983916,1.02021789,3133.9,3132.0,0.002]
[1768889984947,1.02021789,3133.9,3132.0,4.86660417]
[1768889985247,3.19081046,3134.0,3132.0,4.86660417]
[1768889985453,0.62974757,3134.1,3132.1,4.86460417]
[1768889985747,9.56876754,3135.2,3132.1,4.86460417]
[1768889985953,0.128,3135.1,3132.1,4.86460417]
[1768889986714,5.06813056,3135.1,3132.3,4.86460417]
[1768889986920,0.128,3134.3,3132.0,0.002]
[1768889987254,0.503,3134.7,3132.4,4.86660417]
[1768889987482,6.3803994,3134.6,3132.5,0.499]
[1768889987768,6.3803994,3134.6,3132.5,5.36360417]
[1768889988077,0.63803994,3134.5,3132.7,4.86460417]
[1768889988234,0.63803994,3134.5,3132.8,0.499]
[1768889989165,0.63803994,3134.5,3132.8,5.36360417]
[1768889989357,6.38036221,3134.7,3132.8,5.36360417]
[1768889989866,6.38036221,3134.7,3132.4,0.002]
[1768889989867,0.3615703,3134.6,3132.4,0.002]
[1768889990446,0.2335703,3134.0,3131.6,4.86160417]
[1768889990647,0.51737009,3133.9,3131.7,0.98516042]
[1768889990855,0.51737009,3133.9,3131.7,5.84976459]
[1768889991069,0.51737009,3133.9,3131.8,4.86460417]
[1768889991268,9.57120978,3134.4,3131.8,4.86460417]
[1768889991939,6.38080652,3134.4,3131.8,4.86460417]
[1768889992142,3.69338499,3134.5,3131.8,4.86460417]
[1768889992143,3.69332757,3134.5,3131.8,4.86460417]
[1768889992344,6.38065514,3134.5,3131.8,4.86460417]
[1768889992654,3.18979266,3135.0,3131.8,4.86460417]
[1768889992983,3.18979266,3135.0,3131.7,7.37145818]
[1768889992984,0.31897927,3134.9,3132.0,4.86460417]
[1768889993294,0.31897927,3134.9,3132.2,5.43060039]
[1768889993295,3.50888698,3134.9,3132.2,5.43060039]
[1768889993476,6.69879469,3134.9,3132.2,5.43060039]
[1768889993714,6.69879469,3134.9,3132.4,5.43060039]
[1768889993893,0.98886329,3134.8,3132.5,5.97366043]
[1768889994049,0.98886329,3134.8,3132.6,5.92860039]
[1768889994567,0.98886329,3134.8,3132.6,5.92260039]
[1768889994763,0.98886329,3134.8,3132.7,5.43060039]
[1768889994980,0.98886329,3134.8,3132.8,0.499]
[1768889995158,3.92703369,3134.7,3132.9,0.59296004]
[1768889995359,0.73686787,3134.7,3132.9,6.02356043]
[1768889995664,5.36025028,3135.2,3132.9,6.02356043]
[1768889996068,0.16638006,3135.4,3132.9,6.02356043]
[1768889996268,3.18918229,3135.6,3133.0,5.92960039]
[1768889996586,14.92779715,3135.6,3133.1,0.499]
[1768889996738,0.16633993,3136.1,3133.1,5.92960039]
[1768889996943,0.52750872,3136.0,3133.3,5.43060039]
[1768889997179,3.18887719,3135.9,3133.4,5.43060039]
[1768889997386,3.18887719,3135.9,3133.4,5.92960039]
[1768889997804,6.37775438,3135.9,3133.4,5.92960039]
[1768889998007,6.31367273,3135.9,3133.4,0.499]
[1768889998284,0.68411815,3135.8,3133.5,5.79965191]
[1768889998850,0.68411815,3135.8,3133.4,0.498]
[1768889998851,5.59382058,3135.5,3133.4,0.498]
[1768889999286,5.36025028,3135.3,3132.9,5.43060039]
[1768889999461,9.56815716,3135.4,3132.9,5.43060039]
[1768889999462,5.36025028,3135.2,3132.9,5.92860039]
[1768889999663,0.128,3135.3,3132.9,5.92860039]
[1768889999859,0.65067714,3135.2,3132.9,5.92860039]
[1768890000471,0.65067714,3135.2,3133.1,5.43060039]
[1768890000796,0.001,3135.6,3132.9,0.498]
[1768890000797,0.001,3135.6,3133.5,5.43060039]
[1768890001003,0.001,3135.6,3133.4,9.57426435]
[1768890001004,0.001,3135.6,3133.7,5.43060039]
[1768890001205,0.001,3136.3,3134.0,5.43060039]
[1768890001372,0.001,3136.3,3134.2,5.43060039]
[1768890002059,0.001,3136.5,3134.2,5.43060039]
[1768890002260,0.001,3136.5,3134.4,5.43060039]
[1768890002496,6.53993148,3137.9,3134.5,5.43060039]
[1768890002661,5.36025028,3137.8,3134.5,5.92860039]
[1768890002992,5.36025028,3137.8,3134.5,5.43060039]
[1768890003193,6.37450198,3137.5,3134.9,5.43060039]
[1768890003367,6.37450198,3137.5,3134.3,3.19049079]
[1768890003368,1.17347523,3137.4,3135.1,5.43060039]
[1768890004698,0.2335703,3137.3,3135.1,5.43060039]
[1768890004856,0.2335703,3137.3,3135.2,0.498]
[1768890005266,6.37511156,3137.2,3135.3,0.498]
[1768890005497,6.36711156,3137.2,3135.3,0.498]
[1768890005699,0.66006819,3137.1,3135.4,0.498]
[1768890006270,5.59382058,3137.0,3134.1,5.43060039]
[1768890006464,5.59382058,3136.6,3134.2,0.498]
[1768890006668,5.36025028,3136.4,3134.1,5.43060039]
[1768890007174,6.37694098,3136.3,3134.2,0.498]
[1768890007798,3.7476785,3136.5,3134.3,5.43060039]
[1768890008306,0.55938206,3136.5,3134.3,5.43060039]
[1768890008622,0.502,3136.7,3134.5,5.43060039]
[1768890008920,3.69006762,3136.7,3134.5,5.43060039]
[1768890009130,3.69006762,3136.7,3132.9,5.43060039]
[1768890009131,5.36025028,3136.5,3132.9,5.43060039]
[1768890009274,14.92840744,3135.4,3133.0,0.498]
[1768890009610,1.85813765,3135.3,3133.0,1.09086004]
[1768890009903,1.85813765,3135.3,3133.1,5.43060039]
[1768890010104,7.21838793,3135.3,3133.1,5.43060039]
[1768890010317,0.2335703,3135.2,3133.1,5.43060039]
[1768890010620,0.2335703,3135.2,3133.2,0.498]
[1768890011100,9.56815716,3135.4,3133.2,5.43060039]
[1768890011101,6.37877144,3135.4,3133.2,5.43060039]
[1768890011302,0.128,3135.4,3133.3,0.498]
[1768890011601,0.54882503,3135.3,3133.3,0.492]
[1768890011826,0.2335703,3134.7,3132.7,0.498]
[1768890011988,0.2335703,3134.7,3132.8,0.498]
[1768890012314,5.36025028,3134.0,3131.7,0.48616042]
[1768890012515,5.43490243,3134.1,3131.7,0.498]
[1768890012516,0.2335703,3133.8,3131.7,0.498]
[1768890013317,9.57334779,3133.7,3131.7,0.498]
[1768890013530,6.38223186,3133.7,3131.7,0.498]
[1768890014200,9.57334779,3133.7,3131.7,0.498]
[1768890014396,9.57334779,3133.7,3131.8,0.498]
[1768890014736,0.88986554,3133.6,3131.8,0.498]
[1768890014936,0.88986554,3133.6,3131.7,0.498]
[1768890015225,0.88986554,3133.6,3131.6,5.43060039]
[1768890015226,0.88686554,3133.6,3131.8,0.498]
[1768890015406,6.3828429,3133.4,3131.8,0.498]
[1768890016253,11.81774533,3133.4,3131.8,0.498]
[1768890016908,6.3828429,3133.4,3131.8,0.498]
[1768890017115,6.3828429,3133.4,3131.0,5.43260039]
[1768890017116,0.2335703,3133.3,3131.0,5.43260039]
[1768890017284,0.2335703,3133.3,3131.1,5.92860039]
[1768890017285,6.38345408,3133.1,3131.1,5.92860039]
[1768890017808,6.38345408,3133.1,3130.0,5.42660039]
[1768890017809,5.43490243,3132.0,3130.0,5.42660039]
[1768890017990,0.502,3131.9,3129.7,5.59671323]
[1768890018324,0.2335703,3131.8,3129.4,5.92860039]
[1768890018494,0.55938206,3131.7,3129.6,5.43060039]
[1768890018680,0.128,3132.0,3129.6,5.43060039]
[1768890018681,0.2335703,3131.9,3129.6,5.43060039]
[1768890019186,5.36025028,3132.3,3130.0,5.43060039]
[1768890019386,5.36025028,3132.3,3130.1,0.498]
[1768890019387,6.38528828,3132.2,3130.1,0.498]
[1768890019604,5.59382058,3132.1,3129.5,0.59286004]
[1768890019818,5.59382058,3131.6,3127.7,3.19714742]
[1768890020091,0.2335703,3131.4,3128.7,5.43060039]
[1768890020240,5.59382058,3131.2,3128.7,5.43060039]
[1768890020402,5.59382058,3131.2,3126.5,1.62710963]
[1768890020403,5.59382058,3130.0,3127.0,0.16623368]
[1768890020734,5.59382058,3130.0,3125.5,5.92860039]
[1768890020735,30.0,3128.2,3125.5,5.92860039]
[1768890020932,5.29174099,3128.5,3126.2,5.43060039]
[1768890020933,0.00934885,3128.5,3126.2,5.43060039]
[1768890021147,9.685,3129.8,3126.6,5.43060039]
[1768890021437,0.54882503,3129.9,3127.0,5.43060039]
[1768890021634,0.502,3130.4,3127.2,5.43060039]
[1768890021798,0.502,3131.3,3127.4,1.52572307]
[1768890021999,10.0,3131.9,3128.2,5.43060039]
[1768890022199,3.19305191,3131.8,3128.4,5.43060039]
[1768890022437,6.38610382,3131.8,3128.4,5.43060039]
[1768890022638,5.75990575,3131.9,3128.4,5.43060039]
[1768890022639,3.82762543,3131.9,3128.4,5.43060039]
[1768890022801,0.63458476,3131.9,3128.8,5.43060039]
[1768890022995,3.19266108,3132.2,3129.0,5.43060039]
[1768890023232,10.502,3132.7,3129.1,7.16254608]
[1768890023434,0.502,3132.7,3129.5,6.66454608]
[1768890023733,3.19072227,3134.1,3129.2,12.78281988]
[1768890023734,5.7041997,3134.6,3130.1,6.66454608]
[1768890024033,6.3803994,3134.6,3130.9,6.66454608]
[1768890024239,5.12532099,3134.2,3131.1,6.66454608]
[1768890024398,30.0,3134.1,3131.2,0.498]
[1768890024598,11.85742441,3134.0,3131.2,0.498]
[1768890024829,1.68774244,3133.9,3131.3,0.498]
[1768890025406,3.1910141,3133.8,3131.0,6.66454608]
[1768890025631,3.1910141,3133.8,3131.2,6.66454608]
[1768890025837,5.12532099,3133.6,3130.5,3.19432486]
[1768890026147,1.94478587,3133.5,3131.4,6.66454608]
[1768890026316,3.1909163,3133.9,3131.5,7.16254608]
[1768890026499,6.3818326,3133.9,3131.6,0.498]
[1768890026696,3.1909163,3133.9,3131.6,0.498]
[1768890026931,6.38060296,3134.5,3131.6,7.16254608]
[1768890027101,0.6380603,3134.4,3131.8,6.66454608]
[1768890027302,3.82853327,3134.4,3131.9,3.19294996]
[1768890027519,3.82853327,3134.4,3132.0,6.66454608]
[1768890028334,0.6380603,3134.4,3132.0,6.66454608]
[1768890028534,3.69124729,3135.6,3132.0,6.66454608]
[1768890028747,3.18948744,3135.3,3132.0,6.66454608]
[1768890029241,3.18867383,3136.1,3132.4,6.66454608]
[1768890029439,6.37734766,3136.1,3132.7,6.66454608]
[1768890029615,6.37734766,3136.1,3132.6,6.38447296]
[1768890029616,1.15026687,3136.0,3132.9,6.66454608]
[1768890030557,1.15026687,3136.0,3133.1,6.66454608]
[1768890030859,1.15026687,3136.0,3133.0,0.498]
[1768890030860,6.37620912,3136.7,3133.3,6.66454608]
[1768890031148,6.37620912,3136.7,3133.5,6.66454608]
[1768890031346,3.18810456,3136.7,3133.5,6.66454608]
[1768890031508,6.73210342,3136.6,3133.6,0.498]
[1768890031702,0.2335703,3136.3,3133.6,0.498]
[1768890031935,0.2335703,3136.3,3133.7,0.498]
[1768890032115,0.128,3136.4,3133.8,0.498]
[1768890032323,0.128,3136.4,3133.8,7.16254608]
[1768890032929,0.2335703,3136.3,3133.9,0.498]
[1768890033237,0.2335703,3136.3,3134.0,0.71625461]
[1768890033548,0.2335703,3136.1,3134.0,0.71625461]
[1768890033834,0.2335703,3136.1,3134.0,7.38080069]
[1768890034241,0.2335703,3135.9,3132.9,6.66454608]
[1768890034399,0.2335703,3135.9,3133.1,6.66454608]
[1768890034800,0.2335703,3135.7,3133.2,0.498]
[1768890035000,0.2335703,3135.7,3133.3,0.498]
[1768890035217,0.2335703,3135.7,3133.4,0.498]
[1768890035418,5.12532099,3135.8,3133.1,5.62264341]
[1768890035419,0.2335703,3135.3,3133.1,5.62264341]
[1768890035738,0.2335703,3135.3,3133.5,0.497]
[1768890036149,0.2335703,3135.3,3133.6,0.497]
[1768890037423,0.001,3135.4,3133.6,0.497]
[1768890037820,0.001,3135.4,3133.6,7.16154608]
[1768890038157,0.001,3135.4,3133.7,7.38070069]
[1768890038875,6.73210342,3136.7,3133.8,7.16154608]
[1768890039027,0.2335703,3136.5,3133.8,7.16154608]
[1768890039222,6.73210342,3136.6,3133.8,7.16154608]
[1768890039449,12.98704562,3136.4,3133.8,7.16154608]
[1768890039642,0.2335703,3136.2,3133.8,6.66454608]
[1768890039852,0.2335703,3136.2,3133.9,0.497]
[1768890040076,0.2335703,3136.0,3133.8,6.66454608]
[1768890040237,0.2335703,3136.0,3133.9,0.497]
[1768890040871,1.33486159,3136.3,3134.0,6.66454608]
[1768890041070,1.33486159,3136.3,3134.0,7.16154608]
[1768890041370,0.2335703,3136.2,3134.0,7.16154608]
[1768890041663,3.18867383,3136.1,3134.0,7.16154608]
[1768890041963,10.04810867,3136.8,3134.1,6.66454608]
[1768890041964,9.69219164,3136.7,3134.1,6.66454608]
[1768890042164,1.64242951,3136.6,3134.3,6.66454608]
[1768890042677,6.3736894,3137.9,3134.3,6.66454608]
[1768890043054,6.3736894,3137.9,3134.2,0.71615461]
[1768890043055,7.03319841,3137.6,3134.5,7.03787461]
[1768890043376,0.128,3137.2,3134.5,7.03787461]
[1768890043575,6.37511156,3137.2,3134.7,7.03787461]
[1768890043777,0.63751116,3137.1,3134.8,0.70378746]
[1768890044075,0.128,3136.9,3134.5,0.497]
[1768890044279,0.501,3137.6,3134.5,0.497]
[1768890044280,3.1868447,3137.9,3134.7,7.03787461]
[1768890044454,0.31878447,3137.8,3134.9,7.03787461]
[1768890044652,0.31878447,3137.8,3135.1,7.03787461]
[1768890044852,0.001,3138.0,3135.1,7.03787461]
[1768890045283,0.001,3138.0,3135.5,7.03787461]
[1768890045584,0.001,3138.0,3135.7,7.03787461]
[1768890046479,0.001,3138.0,3135.9,7.03787461]
[1768890046983,0.001,3138.0,3136.0,7.53487461]
[1768890047448,0.001,3138.0,3136.2,7.03787461]
[1768890047884,0.001,3138.0,3136.3,0.497]
[1768890048090,0.001,3137.7,3136.4,0.497]
[1768890048294,0.001,3137.7,3136.5,0.497]
[1768890048798,0.001,3137.7,3135.7,0.95675469]
[1768890048799,0.001,3137.7,3136.4,0.497]
[1768890049152,1.6,3137.4,3136.3,0.497]
[1768890049494,0.16,3137.3,3136.3,0.497]
[1768890049893,1.6,3137.4,3136.3,0.497]
[1768890053409,1.6,3137.4,3136.3,7.42261497]
[1768890053577,0.001,3138.0,3136.3,7.42261497]
[1768890053578,0.001,3138.0,3136.4,6.92561497]
[1768890053777,0.001,3138.0,3136.6,6.92561497]
[1768890054234,0.0008004,3138.4,3136.6,6.92561497]
[1768890054430,0.0008004,3138.4,3136.8,6.92561497]
[1768890055335,0.0008004,3138.4,3136.7,1.33021493]
[1768890055336,0.0008004,3138.8,3136.9,6.92561497]
[1768890055726,0.0008004,3138.8,3137.1,6.92561497]
[1768890055900,0.0008004,3138.8,3137.2,7.42261497]
[1768890056228,0.0008004,3138.8,3137.2,0.497]
[1768890056598,0.0008004,3138.8,3137.3,6.92561497]
[1768890056802,0.0008004,3138.8,3137.4,0.7422615]
[1768890057319,0.0008004,3138.8,3137.4,7.66787647]
[1768890057665,0.0008004,3138.8,3137.4,0.7422615]
[1768890057834,0.0008004,3138.8,3137.2,0.497]
[1768890058403,0.0008004,3138.8,3137.2,7.42261497]
[1768890058608,0.0008004,3138.8,3137.4,6.92561497]
[1768890059022,0.0008004,3138.8,3137.2,0.497]
[1768890059244,0.0008004,3138.8,3137.3,3.18739092]
[1768890059437,0.001,3138.5,3137.4,3.5557661]
[1768890059641,0.001,3138.5,3137.4,7.29405406]
[1768890060164,0.0008004,3138.8,3137.4,7.29405406]
[1768890060347,0.0008004,3138.8,3137.6,6.92561497]
[1768890060642,0.0008004,3138.8,3137.7,0.497]
[1768890061968,0.0008004,3138.8,3137.8,6.92561497]
[1768890062193,0.0008004,3138.8,3137.9,0.7422615]
[1768890062455,0.0008004,3138.8,3137.2,6.92561497]
[1768890063030,0.0008004,3138.8,3136.7,0.4978008]
[1768890063453,0.0008004,3138.8,3136.7,0.0008008]
[1768890063654,0.0008004,3138.8,3136.8,7.42261497]
[1768890063856,0.0008004,3138.8,3136.8,0.497]
[1768890064032,0.2335703,3138.7,3136.8,0.497]
[1768890064432,0.0008004,3138.8,3136.9,6.92561497]
[1768890065763,0.0008004,3138.8,3137.1,6.92561497]
[1768890067872,0.0008004,3138.8,3137.3,6.92561497]
[1768890068037,0.0008004,3138.8,3137.5,6.92561497]
[1768890068231,0.0008004,3138.8,3137.6,7.42161497]
[1768890068435,0.0008,3139.2,3137.6,7.42161497]
[1768890068667,0.0008,3139.5,3137.7,6.92561497]
[1768890069461,0.0008,3139.8,3137.7,8.50958904]
[1768890069773,0.0008,3139.8,3138.2,6.92561497]
[1768890069945,0.0008,3139.8,3138.3,1.32988982]
[1768890070143,0.0008,3139.8,3138.4,7.42161497]
[1768890071042,0.0008,3139.8,3138.3,1.32988982]
[1768890071242,7.11743115,3139.8,3137.8,0.4968004]
[1768890071453,0.001,3139.2,3137.8,0.4968004]
[1768890074344,0.001,3139.2,3137.9,6.92561497]
[1768890075085,0.001,3139.2,3137.8,0.4968004]
[1768890076751,0.001,3139.2,3137.8,3.68373884]
[1768890076949,0.001,3139.2,3137.9,7.29398885]
[1768890077164,0.0008,3139.8,3137.9,7.29398885]
[1768890077772,0.0008,3139.8,3138.0,3.18674314]
[1768890077947,0.0008,3139.8,3137.9,7.29398885]
[1768890078153,0.0008,3139.8,3137.9,10.48076836]
[1768890078389,0.0008,3139.8,3138.0,8.02337185]
[1768890078588,7.11743115,3139.8,3138.0,0.93133688]
[1768890078882,7.11743115,3139.8,3137.8,0.0008004]
[1768890079271,7.11663115,3139.6,3137.8,0.0008004]
[1768890079865,0.0008,3139.8,3137.8,6.37469292]
[1768890080067,0.0008,3139.8,3137.9,6.92561497]
[1768890081488,0.0008,3139.8,3137.8,0.0008004]
[1768890081489,7.11663115,3139.4,3137.8,0.0008004]
[1768890081676,7.11663115,3139.2,3137.8,0.0008004]
[1768890082098,0.2335703,3139.5,3137.8,0.0008004]
[1768890082385,7.11663115,3139.7,3137.8,0.0008004]
[1768890082756,7.11663115,3139.6,3137.8,0.0008004]
[1768890082989,7.11663115,3139.4,3137.8,0.0008004]
[1768890083168,7.43320188,3139.2,3137.8,0.0008004]
[1768890083487,7.43320188,3139.2,3137.7,0.496]
[1768890085004,7.43320188,3139.1,3137.7,0.496]
[1768890085411,3.18703435,3139.5,3137.7,0.496]
[1768890085763,0.0018004,3139.5,3137.7,0.496]
[1768890086491,7.43500228,3139.5,3137.7,0.496]
[1768890087082,7.43500228,3139.5,3137.5,0.0008004]
[1768890087288,1.38052405,3139.4,3137.5,0.0008004]
[1768890087903,4.56588346,3139.4,3137.5,0.0008004]
[1768890088082,7.43320188,3139.3,3137.5,0.0008004]
[1768890088277,7.43320188,3139.1,3137.5,0.0008004]
[1768890088481,7.43320188,3138.9,3137.5,0.0008004]
[1768890088712,7.43320188,3138.7,3137.5,0.0008004]
[1768890088932,7.43320188,3138.3,3137.1,0.0008008]
[1768890089085,7.43320188,3138.3,3136.9,0.002]
[1768890089283,0.16602352,3138.2,3136.9,0.002]
[1768890089726,0.0008008,3138.7,3137.0,7.50227704]
[1768890090030,0.0008008,3138.7,3136.9,0.002]
[1768890090031,0.1660056,3138.5,3136.9,0.002]
[1768890090333,7.43320188,3138.5,3136.9,0.002]
[1768890090915,7.43320188,3138.5,3136.7,0.0008008]
[1768890090916,7.43320188,3138.3,3136.7,0.0008008]
[1768890091081,7.43320188,3137.9,3136.4,0.495]
[1768890091284,7.43320188,3137.7,3135.9,3.18885181]
[1768890091485,0.74332019,3137.8,3135.8,7.50227704]
[1768890091783,0.0008008,3138.3,3136.3,7.50227704]
[1768890091976,0.0008008,3138.3,3136.5,7.50227704]
[1768890092380,0.0008008,3138.3,3136.6,0.495]
[1768890093908,0.0008008,3138.3,3136.8,7.50227704]
[1768890096004,0.0008004,3139.2,3137.3,7.50227704]
[1768890096190,0.0008004,3139.2,3137.5,7.50227704]
[1768890096593,0.0008004,3139.2,3137.6,0.495]
[1768890097102,7.43400228,3139.2,3137.7,0.495]
[1768890097922,7.43400228,3139.2,3137.0,0.0008012]
[1768890098215,7.43400228,3139.2,3137.8,7.99727704]
[1768890098216,0.0008004,3139.2,3137.8,7.99727704]
[1768890098398,0.0008004,3139.2,3137.9,0.7997277]
[1768890099186,0.0008004,3139.2,3138.0,7.50227704]
[1768890099987,0.0008004,3139.2,3138.0,10.6889399]
[1768890100316,0.0008004,3139.2,3138.1,7.50227704]
[1768890100710,0.0008004,3139.2,3138.2,0.495]
[1768890100909,0.0008004,3139.2,3138.3,0.7997277]
[1768890101110,0.0008004,3139.2,3138.4,0.495]
[1768890101492,0.0008004,3139.2,3138.3,0.495]
[1768890102531,0.0008004,3139.2,3137.2,3.18748362]
[1768890102731,0.0008004,3139.2,3137.3,0.495]
[1768890102904,0.0008004,3139.2,3137.3,3.68245396]
[1768890103100,0.79744089,3139.2,3137.4,3.55556282]
[1768890103512,0.79744089,3139.2,3137.5,7.70665388]
[1768890103833,0.0008004,3139.2,3137.6,0.495]
[1768890104203,0.0008004,3139.2,3137.6,8.20165388]
[1768890104825,0.0008004,3139.2,3137.7,0.495]
[1768890105193,0.0008004,3139.2,3137.7,8.20165388]
[1768890105392,0.0008004,3139.2,3137.8,9.16424819]
[1768890106005,0.0008004,3139.2,3137.9,0.495]
[1768890106221,0.0008004,3139.2,3137.9,3.68176608]
[1768890106928,0.0008004,3139.2,3137.9,8.20165388]
[1768890107295,0.0008004,3139.2,3137.9,11.38849123]
[1768890107617,0.0008004,3139.2,3138.0,1.28460855]
[1768890108125,0.0008004,3139.2,3138.0,8.99126243]
[1768890108294,0.0008004,3139.2,3138.2,7.70665388]
[1768890108723,0.001,3138.9,3138.2,7.70665388]
[1768890108927,0.0018004,3139.5,3138.2,7.70665388]
[1768890109124,0.0018004,3139.5,3138.3,1.08932955]
[1768890109325,0.0018004,3139.5,3138.3,8.79598343]
[1768890110401,0.0018004,3139.5,3138.4,10.89299086]
[1768890110834,0.0018004,3139.5,3138.5,7.70665388]
[1768890111536,0.0018004,3139.5,3138.3,1.08932955]
[1768890111836,0.0018004,3139.5,3138.3,0.496]
[1768890114538,8.14986345,3139.5,3137.7,3.18698958]
[1768890114746,8.14986345,3139.5,3138.3,0.496]
[1768890115449,8.14986345,3139.5,3137.5,8.22446032]
[1768890115617,8.9630494,3139.4,3137.6,0.85927057]
[1768890115820,8.9630494,3139.4,3137.7,0.496]
[1768890117521,8.9630494,3139.4,3137.7,3.6830471]
[1768890117727,8.9630494,3139.4,3137.7,11.90670662]
[1768890117935,8.9630494,3139.4,3137.7,8.71965952]
[1768890118137,0.89648498,3139.3,3137.8,0.95789301]
[1768890118638,0.0018004,3139.5,3137.8,0.95789301]
[1768890118639,0.0018004,3139.5,3137.9,8.22365952]
[1768890118839,0.0018004,3139.5,3137.8,0.95789301]
[1768890118840,8.14986345,3139.5,3137.8,0.95789301]
[1768890119042,8.14986345,3139.5,3137.7,0.496]
[1768890119441,8.14986345,3139.5,3137.7,3.6829867]
[1768890119633,8.14986345,3139.5,3137.7,11.90664622]
[1768890120165,8.14986345,3139.5,3137.7,8.71965952]
[1768890120326,0.81498635,3139.4,3137.7,12.7677456]
[1768890120531,0.81498635,3139.4,3137.7,9.58075618]
[1768890121070,8.14806305,3139.3,3137.8,0.496]
[1768890121236,8.14806305,3139.3,3138.0,0.002]
[1768890121564,0.89730494,3139.2,3138.0,0.002]
[1768890121864,0.001,3139.2,3138.0,0.002]
[1768890122067,0.001,3139.2,3138.1,8.22365952]
[1768890122682,0.001,3139.2,3138.3,8.22365952]
[1768890123189,0.001,3139.2,3138.4,0.496]
[1768890126171,0.001,3139.2,3138.0,0.002]
[1768890126172,8.14906305,3139.2,3138.2,0.496]
[1768890126377,0.81490631,3139.1,3138.2,0.496]
[1768890127155,0.001,3139.2,3138.2,0.496]
[1768890127554,8.14906305,3139.2,3138.0,0.002]
[1768890127771,8.14906305,3139.2,3138.1,0.496]
[1768890128793,8.14906305,3139.2,3138.0,0.002]
[1768890129298,8.14906305,3139.2,3137.6,0.002]
[1768890129455,9.19653966,3139.1,3137.1,0.00098781]
[1768890130263,8.96296936,3139.1,3137.2,8.22365952]
[1768890130983,6.37145586,3139.0,3137.2,8.22365952]
[1768890131189,8.14806305,3138.9,3137.2,8.22365952]
[1768890131480,8.14806305,3138.7,3137.1,0.00098781]
[1768890132753,8.14806305,3138.7,3137.1,3.18861676]
[1768890132958,8.14806305,3138.7,3137.1,0.00098781]
[1768890133559,8.14806305,3138.7,3137.1,8.22464733]
[1768890133760,1.45195189,3138.8,3137.1,8.22464733]
[1768890133997,8.14806305,3139.1,3137.3,8.22365952]
[1768890134167,8.14806305,3139.0,3137.3,8.22365952]
[1768890134488,8.14806305,3139.0,3137.3,0.496]
[1768890134908,5.42023153,3138.7,3137.1,0.00098781]
[1768890135059,8.14806305,3138.6,3137.1,0.00098781]
[1768890135259,8.14806305,3138.4,3137.1,0.00098781]
[1768890135892,8.14806305,3138.3,3137.1,0.00098781]
[1768890138871,8.14806305,3138.2,3137.1,0.00098781]
[1768890140406,8.14806305,3138.0,3136.8,0.002]
[1768890143995,1.35682946,3138.5,3136.8,7.95884459]
[1768890143996,8.03174342,3138.4,3136.8,7.95884459]
[1768890144183,1.32479638,3138.4,3137.0,7.95684459]
[1768890144387,0.0008012,3138.6,3137.0,7.95684459]
[1768890145606,0.0008012,3138.6,3137.2,7.95684459]
[1768890146414,0.001,3138.1,3137.2,7.95684459]
[1768890146706,0.001,3138.1,3137.4,7.95684459]
[1768890146917,0.001,3138.1,3137.3,0.496]
[1768890146918,0.001,3138.1,3137.6,7.95684459]
[1768890147078,0.0008012,3138.6,3137.6,7.95684459]
[1768890147481,0.0008012,3138.6,3137.7,7.95684459]
[1768890149001,0.0008,3139.8,3137.7,7.95684459]
[1768890149601,0.0008,3139.8,3137.9,7.95684459]
[1768890150415,0.0008,3139.8,3138.0,7.95684459]
[1768890150623,0.0008,3140.1,3138.1,9.54913891]
[1768890150914,0.0008,3140.1,3138.3,7.95684459]
[1768890151119,0.0008,3140.4,3138.5,7.95684459]
[1768890151286,0.0008,3140.4,3138.7,7.95684459]
[1768890151482,0.0008,3140.4,3138.9,7.95684459]
[1768890151688,0.0008,3140.4,3139.1,7.95684459]
[1768890152213,0.0008,3140.7,3139.2,7.95684459]
[1768890152814,0.0008,3141.1,3139.3,7.95684459]
[1768890153017,0.0008,3141.1,3139.0,0.496]
[1768890153018,0.0008,3141.1,3139.5,7.95684459]
[1768890153717,0.0008,3141.4,3139.8,7.95684459]
[1768890153915,0.0008,3141.4,3140.0,7.95684459]